[Event "Early-Titled-Tuesday-Blitz-June-18-2024"]
[Site "Chess.com"]
[Date "2024.06.18"]
[Round "8"]
[White "Zhani-Z"]
[Black "SuperPower2011"]
[Result "1/2-1/2"]
[WhiteElo "2454"]
[BlackElo "2715"]
[TimeControl "180+1"]
[EndTime "9:31:51 PDT"]
[Termination "Game drawn by stalemate"]

1. e4 {[%clk 0:02:45.6]} 1... c5 {[%clk 0:02:56.7]} 2. f3 {[%clk 0:02:45.3]}
2... Nf6 {[%clk 0:02:49.3]} 3. c4 {[%clk 0:02:40.2]} 3... Nc6 {[%clk 0:02:48.1]}
4. Ne2 {[%clk 0:02:39.8]} 4... e6 {[%clk 0:02:36.5]} 5. d4 {[%clk 0:02:38.6]}
5... cxd4 {[%clk 0:02:18.3]} 6. Nxd4 {[%clk 0:02:39.5]} 6... d5 {[%clk
0:02:18.7]} 7. cxd5 {[%clk 0:02:15.7]} 7... exd5 {[%clk 0:01:51.7]} 8. Bb5
{[%clk 0:02:15]} 8... Bd7 {[%clk 0:00:44.7]} 9. Bxc6 {[%clk 0:02:09.3]} 9...
bxc6 {[%clk 0:00:43.9]} 10. e5 {[%clk 0:02:08.5]} 10... Ng8 {[%clk 0:00:42.4]}
11. O-O {[%clk 0:02:01.6]} 11... Bc5 {[%clk 0:00:42.1]} 12. Nc3 {[%clk
0:01:55.6]} 12... Ne7 {[%clk 0:00:42.7]} 13. Na4 {[%clk 0:01:53.2]} 13... Bb6
{[%clk 0:00:41.3]} 14. b4 {[%clk 0:01:51.3]} 14... O-O {[%clk 0:00:31.1]} 15.
Kh1 {[%clk 0:01:48.5]} 15... Kh8 {[%clk 0:00:24.7]} 16. Be3 {[%clk 0:01:45.5]}
16... Ng6 {[%clk 0:00:22.4]} 17. f4 {[%clk 0:01:44.7]} 17... Re8 {[%clk
0:00:22.8]} 18. Bg1 {[%clk 0:01:33.6]} 18... Qh4 {[%clk 0:00:15.2]} 19. Qe1
{[%clk 0:01:30.3]} 19... Qh5 {[%clk 0:00:14.4]} 20. Qg3 {[%clk 0:01:24.3]} 20...
Nh4 {[%clk 0:00:09.9]} 21. Rac1 {[%clk 0:01:14.6]} 21... Rac8 {[%clk 0:00:02.2]}
22. Nc5 {[%clk 0:01:14.2]} 22... Bxc5 {[%clk 0:00:02.3]} 23. Rxc5 {[%clk
0:01:14.3]} 23... Nf5 {[%clk 0:00:03]} 24. Nxf5 {[%clk 0:00:58.5]} 24... Bxf5
{[%clk 0:00:03.9]} 25. Bd4 {[%clk 0:00:58.4]} 25... Be4 {[%clk 0:00:03.7]} 26.
Re1 {[%clk 0:00:34.2]} 26... Qh6 {[%clk 0:00:03.8]} 27. a3 {[%clk 0:00:31.5]}
27... Kg8 {[%clk 0:00:03.7]} 28. h3 {[%clk 0:00:31.7]} 28... Re6 {[%clk
0:00:03.4]} 29. f5 {[%clk 0:00:15.2]} 29... Bxf5 {[%clk 0:00:02.8]} 30. Be3
{[%clk 0:00:15.6]} 30... Qg6 {[%clk 0:00:01.7]} 31. Qxg6 {[%clk 0:00:15.4]}
31... hxg6 {[%clk 0:00:02]} 32. Bd4 {[%clk 0:00:15.3]} 32... Be4 {[%clk
0:00:02.4]} 33. Kg1 {[%clk 0:00:15.2]} 33... f6 {[%clk 0:00:02.3]} 34. exf6
{[%clk 0:00:14.5]} 34... gxf6 {[%clk 0:00:03.2]} 35. Rec1 {[%clk 0:00:14.5]}
35... Kf7 {[%clk 0:00:01.6]} 36. b5 {[%clk 0:00:14.9]} 36... Ke7 {[%clk
0:00:01.7]} 37. Rxc6 {[%clk 0:00:14.9]} 37... Rexc6 {[%clk 0:00:01.4]} 38. Rxc6
{[%clk 0:00:13.7]} 38... Rb8 {[%clk 0:00:02]} 39. a4 {[%clk 0:00:13.6]} 39...
Bc2 {[%clk 0:00:02.4]} 40. Ra6 {[%clk 0:00:11.9]} 40... Rb7 {[%clk 0:00:02.2]}
41. Bxf6+ {[%clk 0:00:12.2]} 41... Kd7 {[%clk 0:00:02.2]} 42. Bd4 {[%clk
0:00:13.1]} 42... Kc7 {[%clk 0:00:02.1]} 43. Kf2 {[%clk 0:00:13.5]} 43... Kb8
{[%clk 0:00:02.3]} 44. Ke3 {[%clk 0:00:13.2]} 44... Re7+ {[%clk 0:00:01.9]} 45.
Kd2 {[%clk 0:00:13.6]} 45... Be4 {[%clk 0:00:02.6]} 46. g4 {[%clk 0:00:13.8]}
46... Bg2 {[%clk 0:00:02.7]} 47. Rxg6 {[%clk 0:00:13.7]} 47... Bxh3 {[%clk
0:00:03]} 48. g5 {[%clk 0:00:13.9]} 48... Bf5 {[%clk 0:00:03]} 49. Rf6 {[%clk
0:00:13.8]} 49... Be4 {[%clk 0:00:03.2]} 50. g6 {[%clk 0:00:14.1]} 50... Kc8
{[%clk 0:00:02.5]} 51. g7 {[%clk 0:00:14.2]} 51... Bh7 {[%clk 0:00:01.4]} 52.
Rf8+ {[%clk 0:00:14.3]} 52... Kd7 {[%clk 0:00:02.1]} 53. g8=Q {[%clk 0:00:14.9]}
53... Bxg8 {[%clk 0:00:02.9]} 54. Rxg8 {[%clk 0:00:15.5]} 54... Re4 {[%clk
0:00:03.8]} 55. Rg7+ {[%clk 0:00:15.1]} 55... Kd6 {[%clk 0:00:04]} 56. Rg6+
{[%clk 0:00:16]} 56... Kd7 {[%clk 0:00:04]} 57. Kd3 {[%clk 0:00:16.9]} 57... Re1
{[%clk 0:00:04.4]} 58. Ra6 {[%clk 0:00:16.9]} 58... Rd1+ {[%clk 0:00:05.1]} 59.
Kc3 {[%clk 0:00:17.5]} 59... Rc1+ {[%clk 0:00:05.4]} 60. Kd2 {[%clk 0:00:18.1]}
60... Rc4 {[%clk 0:00:05.7]} 61. Rxa7+ {[%clk 0:00:17]} 61... Kd6 {[%clk
0:00:06.6]} 62. Ra6+ {[%clk 0:00:17.5]} 62... Kd7 {[%clk 0:00:07.5]} 63. Kd3
{[%clk 0:00:18.4]} 63... Rc1 {[%clk 0:00:07.9]} 64. Rc6 {[%clk 0:00:18.5]} 64...
Rd1+ {[%clk 0:00:08.8]} 65. Kc3 {[%clk 0:00:18.3]} 65... Rc1+ {[%clk 0:00:08.5]}
66. Kb4 {[%clk 0:00:18.7]} 66... Rxc6 {[%clk 0:00:09.2]} 67. bxc6+ {[%clk
0:00:14.7]} 67... Kxc6 {[%clk 0:00:10.1]} 68. Ka5 {[%clk 0:00:14.5]} 68... Kb7
{[%clk 0:00:11]} 69. Kb5 {[%clk 0:00:15.1]} 69... Ka8 {[%clk 0:00:11.9]} 70. Kc6
{[%clk 0:00:15.2]} 70... Kb8 {[%clk 0:00:12.1]} 71. Kxd5 {[%clk 0:00:13.4]}
71... Ka8 {[%clk 0:00:13]} 72. Kc6 {[%clk 0:00:13.3]} 72... Kb8 {[%clk
0:00:13.9]} 73. a5 {[%clk 0:00:13.6]} 73... Ka8 {[%clk 0:00:14.8]} 74. a6 {[%clk
0:00:14.5]} 74... Kb8 {[%clk 0:00:15.7]} 75. a7+ {[%clk 0:00:14.8]} 75... Ka8
{[%clk 0:00:16.6]} 76. Kb6 {[%clk 0:00:15.7]} 1/2-1/2

[Event "Early-Titled-Tuesday-Blitz-June-18-2024"]
[Site "Chess.com"]
[Date "2024.06.18"]
[Round "8"]
[White "SpongeBob_03"]
[Black "sachiniranasinghe"]
[Result "0-1"]
[WhiteElo "2213"]
[BlackElo "1954"]
[TimeControl "180+1"]
[EndTime "9:31:57 PDT"]
[Termination "sachiniranasinghe won on time"]

1. d4 {[%clk 0:03:00.9]} 1... Nf6 {[%clk 0:02:59.3]} 2. c4 {[%clk 0:03:00.4]}
2... g6 {[%clk 0:02:57.8]} 3. Nc3 {[%clk 0:02:59.8]} 3... Bg7 {[%clk 0:02:57]}
4. e4 {[%clk 0:02:59.9]} 4... d6 {[%clk 0:02:56.3]} 5. Nf3 {[%clk 0:02:59.5]}
5... O-O {[%clk 0:02:55.8]} 6. Be2 {[%clk 0:02:58]} 6... e5 {[%clk 0:02:54.3]}
7. O-O {[%clk 0:02:58]} 7... Nc6 {[%clk 0:02:52.7]} 8. d5 {[%clk 0:02:58]} 8...
Ne7 {[%clk 0:02:49.3]} 9. b4 {[%clk 0:02:58]} 9... a5 {[%clk 0:02:46.7]} 10.
bxa5 {[%clk 0:02:57.3]} 10... Rxa5 {[%clk 0:02:45.3]} 11. a4 {[%clk 0:02:57.4]}
11... b6 {[%clk 0:02:32.8]} 12. Ba3 {[%clk 0:02:56.8]} 12... Ne8 {[%clk
0:02:28.8]} 13. Bb4 {[%clk 0:02:53.1]} 13... Ra8 {[%clk 0:02:28.7]} 14. a5
{[%clk 0:02:41.8]} 14... c5 {[%clk 0:02:28.4]} 15. dxc6 {[%clk 0:02:37.1]} 15...
Nxc6 {[%clk 0:02:28.3]} 16. Nd5 {[%clk 0:02:20.6]} 16... Nxb4 {[%clk 0:01:46.5]}
17. Nxb4 {[%clk 0:02:20.1]} 17... bxa5 {[%clk 0:01:46.7]} 18. c5 {[%clk
0:01:54.5]} 18... Bg4 {[%clk 0:01:19.3]} 19. Nc6 {[%clk 0:00:57.1]} 19... Qc7
{[%clk 0:01:15.6]} 20. Qa4 {[%clk 0:00:42.3]} 20... dxc5 {[%clk 0:01:04.7]} 21.
Rfc1 {[%clk 0:00:31.1]} 21... Nd6 {[%clk 0:00:52]} 22. Rxc5 {[%clk 0:00:30.5]}
22... Nb7 {[%clk 0:00:51.7]} 23. Rc3 {[%clk 0:00:20.4]} 23... Rfc8 {[%clk
0:00:43.8]} 24. Rac1 {[%clk 0:00:20]} 24... h6 {[%clk 0:00:21.8]} 25. Bc4 {[%clk
0:00:18.1]} 25... Kh7 {[%clk 0:00:20.1]} 26. Bd5 {[%clk 0:00:17.4]} 26... Qd6
{[%clk 0:00:17.2]} 27. h3 {[%clk 0:00:12.3]} 27... Be6 {[%clk 0:00:15.6]} 28.
Bxe6 {[%clk 0:00:11.4]} 28... Qxe6 {[%clk 0:00:15.7]} 29. Qb5 {[%clk 0:00:10]}
29... Nd6 {[%clk 0:00:15.4]} 30. Qd5 {[%clk 0:00:10.2]} 30... Qxd5 {[%clk
0:00:13.9]} 31. exd5 {[%clk 0:00:10.6]} 31... e4 {[%clk 0:00:14]} 32. Nfe5
{[%clk 0:00:11]} 32... Bxe5 {[%clk 0:00:10.1]} 33. Nxe5 {[%clk 0:00:11.2]} 33...
Rxc3 {[%clk 0:00:10.5]} 34. Rxc3 {[%clk 0:00:11]} 34... a4 {[%clk 0:00:10.3]}
35. Ra3 {[%clk 0:00:08]} 35... Kg7 {[%clk 0:00:10]} 36. Kf1 {[%clk 0:00:07]}
36... Ra5 {[%clk 0:00:09.6]} 37. Nc6 {[%clk 0:00:04.5]} 37... Rxd5 {[%clk
0:00:09.2]} 38. Rxa4 {[%clk 0:00:04.9]} 38... f5 {[%clk 0:00:09.1]} 39. Ke2
{[%clk 0:00:05.1]} 39... Kf6 {[%clk 0:00:08.4]} 40. Rd4 {[%clk 0:00:05.1]} 40...
Rxd4 {[%clk 0:00:08.3]} 41. Nxd4 {[%clk 0:00:05.4]} 41... Ke5 {[%clk 0:00:08.5]}
42. Nc6+ {[%clk 0:00:05.2]} 42... Kf6 {[%clk 0:00:08.3]} 43. Nd4 {[%clk
0:00:05.3]} 43... g5 {[%clk 0:00:07.5]} 44. Ke3 {[%clk 0:00:04.5]} 44... f4+
{[%clk 0:00:07.3]} 45. Ke2 {[%clk 0:00:04.3]} 45... Nc4 {[%clk 0:00:07.2]} 46.
Nc6 {[%clk 0:00:03.9]} 46... Ne5 {[%clk 0:00:07]} 47. Nb4 {[%clk 0:00:04.1]}
47... h5 {[%clk 0:00:07]} 48. Nc2 {[%clk 0:00:03.7]} 48... Kf5 {[%clk
0:00:05.7]} 49. Nd4+ {[%clk 0:00:04.1]} 49... Kf6 {[%clk 0:00:06.6]} 50. Kd2
{[%clk 0:00:03.6]} 50... Ng6 {[%clk 0:00:06.7]} 51. Ke2 {[%clk 0:00:04]} 51...
Ne7 {[%clk 0:00:07.2]} 52. Kd2 {[%clk 0:00:03.7]} 52... Nf5 {[%clk 0:00:07.6]}
53. Nc6 {[%clk 0:00:02.2]} 53... Ke6 {[%clk 0:00:07.5]} 54. Nb4 {[%clk
0:00:01.9]} 54... Ke5 {[%clk 0:00:07.6]} 55. Nc2 {[%clk 0:00:01.9]} 55... Kd5
{[%clk 0:00:07.6]} 56. Ke2 {[%clk 0:00:01.5]} 56... Nd4+ {[%clk 0:00:07.5]} 57.
Nxd4 {[%clk 0:00:01.5]} 57... Kxd4 {[%clk 0:00:08.2]} 58. g3 {[%clk 0:00:01.9]}
58... f3+ {[%clk 0:00:07.7]} 59. Kd2 {[%clk 0:00:01.3]} 59... e3+ {[%clk
0:00:07.8]} 60. fxe3+ {[%clk 0:00:01.2]} 60... Ke4 {[%clk 0:00:08.1]} 0-1

[Event "Early-Titled-Tuesday-Blitz-June-18-2024"]
[Site "Chess.com"]
[Date "2024.06.18"]
[Round "8"]
[White "Mysterio47"]
[Black "jguerramzllo"]
[Result "1-0"]
[WhiteElo "2837"]
[BlackElo "2670"]
[TimeControl "180+1"]
[EndTime "9:31:59 PDT"]
[Termination "Mysterio47 won on time"]

1. e4 {[%clk 0:03:00.9]} 1... e5 {[%clk 0:02:59.6]} 2. Nf3 {[%clk 0:03:00.7]}
2... Nc6 {[%clk 0:03:00.1]} 3. Bc4 {[%clk 0:03:01.2]} 3... Bc5 {[%clk 0:03:00]}
4. c3 {[%clk 0:03:01.2]} 4... Nf6 {[%clk 0:03:00]} 5. d4 {[%clk 0:03:01.7]} 5...
exd4 {[%clk 0:03:00.5]} 6. cxd4 {[%clk 0:03:02.5]} 6... Bb4+ {[%clk 0:03:00.9]}
7. Nbd2 {[%clk 0:03:03.2]} 7... d5 {[%clk 0:02:09.7]} 8. exd5 {[%clk 0:03:04.1]}
8... Nxd5 {[%clk 0:02:09.6]} 9. O-O {[%clk 0:03:04.8]} 9... Bxd2 {[%clk
0:01:57.6]} 10. Bxd2 {[%clk 0:03:04.4]} 10... O-O {[%clk 0:01:57.7]} 11. h3
{[%clk 0:03:01.1]} 11... Bf5 {[%clk 0:01:52]} 12. Qb3 {[%clk 0:02:33.4]} 12...
Nb6 {[%clk 0:01:49]} 13. d5 {[%clk 0:02:32.2]} 13... Nxc4 {[%clk 0:01:43.9]} 14.
Qxc4 {[%clk 0:02:33.1]} 14... Ne7 {[%clk 0:01:44.2]} 15. Bb4 {[%clk 0:02:32.5]}
15... Re8 {[%clk 0:01:42.1]} 16. Rad1 {[%clk 0:02:29.1]} 16... Nc8 {[%clk
0:01:29.8]} 17. Qf4 {[%clk 0:02:20.7]} 17... Bg6 {[%clk 0:01:27.2]} 18. Rfe1
{[%clk 0:02:15.1]} 18... Rxe1+ {[%clk 0:01:24.1]} 19. Rxe1 {[%clk 0:02:16]}
19... Nd6 {[%clk 0:01:24.4]} 20. Ne5 {[%clk 0:02:08.7]} 20... a5 {[%clk
0:01:20.7]} 21. Bxd6 {[%clk 0:01:52.2]} 21... cxd6 {[%clk 0:01:11.5]} 22. Nc4
{[%clk 0:01:48.9]} 22... Ra6 {[%clk 0:01:02.3]} 23. a4 {[%clk 0:01:40.5]} 23...
f6 {[%clk 0:00:55.9]} 24. Qd4 {[%clk 0:01:10.7]} 24... Bf7 {[%clk 0:00:53.7]}
25. b3 {[%clk 0:01:10.5]} 25... h6 {[%clk 0:00:49.5]} 26. h4 {[%clk 0:01:08.7]}
26... h5 {[%clk 0:00:48.8]} 27. Re3 {[%clk 0:01:06.9]} 27... Ra8 {[%clk
0:00:35]} 28. Nb6 {[%clk 0:01:02.5]} 28... Ra6 {[%clk 0:00:32.5]} 29. Nc4 {[%clk
0:01:02.7]} 29... Ra8 {[%clk 0:00:32.9]} 30. Rd3 {[%clk 0:00:57.2]} 30... Rc8
{[%clk 0:00:32.7]} 31. Qf4 {[%clk 0:00:57.4]} 31... Rc5 {[%clk 0:00:32.7]} 32.
Nxd6 {[%clk 0:00:43.7]} 32... Qc7 {[%clk 0:00:33]} 33. Rg3 {[%clk 0:00:28.5]}
33... Kf8 {[%clk 0:00:13.6]} 34. Rf3 {[%clk 0:00:14.6]} 34... Rxd5 {[%clk
0:00:08]} 35. Nxf7 {[%clk 0:00:14.1]} 35... Qxf4 {[%clk 0:00:06.1]} 36. Rxf4
{[%clk 0:00:15]} 36... Kxf7 {[%clk 0:00:06.5]} 37. Rc4 {[%clk 0:00:15.4]} 37...
Ke6 {[%clk 0:00:05]} 38. Rc7 {[%clk 0:00:15.6]} 38... Rd7 {[%clk 0:00:05.3]} 39.
Rc5 {[%clk 0:00:16]} 39... b6 {[%clk 0:00:05.3]} 40. Rxh5 {[%clk 0:00:16]} 40...
Rd3 {[%clk 0:00:05.1]} 41. Rb5 {[%clk 0:00:16.1]} 41... Rd6 {[%clk 0:00:05]} 42.
g3 {[%clk 0:00:16.8]} 42... f5 {[%clk 0:00:04.8]} 43. Kg2 {[%clk 0:00:16.9]}
43... g6 {[%clk 0:00:05]} 44. Kf3 {[%clk 0:00:17.3]} 44... Kd7 {[%clk
0:00:04.3]} 45. h5 {[%clk 0:00:17.3]} 45... gxh5 {[%clk 0:00:02.7]} 46. Kf4
{[%clk 0:00:17.9]} 46... Ke6 {[%clk 0:00:02.6]} 47. Re5+ {[%clk 0:00:17.7]}
47... Kf6 {[%clk 0:00:02.8]} 48. Rxf5+ {[%clk 0:00:18.1]} 48... Kg6 {[%clk
0:00:03.7]} 49. Rg5+ {[%clk 0:00:18.6]} 49... Kh6 {[%clk 0:00:03.4]} 50. Rb5
{[%clk 0:00:19.3]} 50... Rf6+ {[%clk 0:00:03.5]} 51. Ke3 {[%clk 0:00:19.4]}
51... Re6+ {[%clk 0:00:03.8]} 52. Kd3 {[%clk 0:00:19.7]} 52... Rf6 {[%clk
0:00:03.3]} 53. f4 {[%clk 0:00:19.7]} 53... Rg6 {[%clk 0:00:03.6]} 54. Ke4
{[%clk 0:00:19.3]} 54... Rxg3 {[%clk 0:00:03.8]} 55. Rxb6+ {[%clk 0:00:19.9]}
55... Kg7 {[%clk 0:00:04.4]} 56. f5 {[%clk 0:00:15.4]} 56... h4 {[%clk
0:00:04.3]} 57. Kf4 {[%clk 0:00:14.1]} 57... Rg1 {[%clk 0:00:03.1]} 58. Rb7+
{[%clk 0:00:14.3]} 58... Kf6 {[%clk 0:00:02.9]} 59. Rb6+ {[%clk 0:00:12.3]}
59... Kg7 {[%clk 0:00:02.7]} 60. Rb7+ {[%clk 0:00:12.9]} 60... Kf6 {[%clk
0:00:02.9]} 61. Rh7 {[%clk 0:00:13.4]} 61... Rb1 {[%clk 0:00:02.2]} 62. Rh6+
{[%clk 0:00:13]} 62... Kg7 {[%clk 0:00:01.8]} 63. Rxh4 {[%clk 0:00:12.8]} 63...
Rxb3 {[%clk 0:00:02.4]} 64. Kg5 {[%clk 0:00:13.3]} 64... Rb4 {[%clk 0:00:02]}
65. Rg4 {[%clk 0:00:13]} 65... Kf7 {[%clk 0:00:01]} 66. Rf4 {[%clk 0:00:13.5]}
66... Rb3 {[%clk 0:00:01]} 67. Rd4 {[%clk 0:00:13.2]} 67... Rb4 {[%clk
0:00:01.1]} 68. Rf4 {[%clk 0:00:10.8]} 68... Rb2 {[%clk 0:00:01]} 69. f6 {[%clk
0:00:09.3]} 69... Rb6 {[%clk 0:00:01]} 70. Rf5 {[%clk 0:00:09.3]} 70... Ra6
{[%clk 0:00:01.5]} 71. Re5 {[%clk 0:00:07.8]} 71... Rb6 {[%clk 0:00:01.9]} 72.
Rxa5 {[%clk 0:00:08.2]} 72... Rxf6 {[%clk 0:00:01]} 73. Ra7+ {[%clk 0:00:08.8]}
73... Ke6 {[%clk 0:00:01]} 74. Ra6+ {[%clk 0:00:09.3]} 74... Ke5 {[%clk
0:00:01.9]} 75. Rxf6 {[%clk 0:00:10.2]} 1-0

[Event "Early-Titled-Tuesday-Blitz-June-18-2024"]
[Site "Chess.com"]
[Date "2024.06.18"]
[Round "8"]
[White "Revan_2002"]
[Black "maximnovik"]
[Result "0-1"]
[WhiteElo "2730"]
[BlackElo "2570"]
[TimeControl "180+1"]
[EndTime "9:32:02 PDT"]
[Termination "maximnovik won on time"]

1. Nf3 {[%clk 0:03:00.9]} 1... Nf6 {[%clk 0:02:58.1]} 2. g3 {[%clk 0:03:00.8]}
2... g6 {[%clk 0:02:58.3]} 3. Bg2 {[%clk 0:03:01.1]} 3... d5 {[%clk 0:02:58.8]}
4. O-O {[%clk 0:03:01.6]} 4... Bg7 {[%clk 0:02:59.1]} 5. d3 {[%clk 0:03:02.1]}
5... O-O {[%clk 0:02:59]} 6. Nbd2 {[%clk 0:03:02.8]} 6... c5 {[%clk 0:02:59.2]}
7. e4 {[%clk 0:03:03.4]} 7... e6 {[%clk 0:02:59.5]} 8. Re1 {[%clk 0:03:03.9]}
8... Nc6 {[%clk 0:03:00.1]} 9. c3 {[%clk 0:03:02.8]} 9... a5 {[%clk 0:03:00.5]}
10. e5 {[%clk 0:02:57]} 10... Nd7 {[%clk 0:03:00.4]} 11. d4 {[%clk 0:02:57.7]}
11... cxd4 {[%clk 0:03:00.1]} 12. cxd4 {[%clk 0:02:58.5]} 12... f6 {[%clk
0:03:00.3]} 13. exf6 {[%clk 0:02:58.1]} 13... Qxf6 {[%clk 0:03:00.3]} 14. Nb3
{[%clk 0:02:52.5]} 14... a4 {[%clk 0:03:00.1]} 15. Bg5 {[%clk 0:02:53.1]} 15...
Qf7 {[%clk 0:03:00.2]} 16. Nc1 {[%clk 0:02:49.5]} 16... a3 {[%clk 0:02:53.6]}
17. bxa3 {[%clk 0:02:47.5]} 17... Nxd4 {[%clk 0:02:52.6]} 18. Nxd4 {[%clk
0:02:28.3]} 18... Qxf2+ {[%clk 0:02:51.3]} 19. Kh1 {[%clk 0:02:28.9]} 19... Qxd4
{[%clk 0:02:50.1]} 20. Qxd4 {[%clk 0:02:27.7]} 20... Bxd4 {[%clk 0:02:49.8]} 21.
Rb1 {[%clk 0:02:28.2]} 21... Nc5 {[%clk 0:02:47.7]} 22. Rd1 {[%clk 0:02:21.1]}
22... Bg7 {[%clk 0:02:30.3]} 23. Be7 {[%clk 0:02:16.6]} 23... Na4 {[%clk
0:02:24.1]} 24. Bxf8 {[%clk 0:02:14.2]} 24... Kxf8 {[%clk 0:02:24.1]} 25. Ne2
{[%clk 0:02:03.4]} 25... Ke7 {[%clk 0:02:15.8]} 26. Rdc1 {[%clk 0:01:51.4]}
26... Kd6 {[%clk 0:02:08.6]} 27. Rb4 {[%clk 0:01:42.6]} 27... Bb2 {[%clk
0:01:49.7]} 28. Rc2 {[%clk 0:00:47.9]} 28... Bxa3 {[%clk 0:01:44.1]} 29. Rxa4
{[%clk 0:00:48.2]} 29... Rxa4 {[%clk 0:01:43.7]} 30. Rxc8 {[%clk 0:00:48.7]}
30... Bb2 {[%clk 0:01:28.9]} 31. Bf3 {[%clk 0:00:39.2]} 31... Rxa2 {[%clk
0:01:26.7]} 32. Rd8+ {[%clk 0:00:31.5]} 32... Ke7 {[%clk 0:01:11.1]} 33. Rb8
{[%clk 0:00:30.1]} 33... Ra7 {[%clk 0:01:01.6]} 34. Kg2 {[%clk 0:00:30.6]} 34...
Be5 {[%clk 0:01:01]} 35. Rc8 {[%clk 0:00:31]} 35... b5 {[%clk 0:01:00.2]} 36.
Nc1 {[%clk 0:00:27.7]} 36... Rc7 {[%clk 0:00:54.5]} 37. Rxc7+ {[%clk 0:00:27]}
37... Bxc7 {[%clk 0:00:54.5]} 38. Be2 {[%clk 0:00:27]} 38... b4 {[%clk
0:00:53.3]} 39. Nb3 {[%clk 0:00:27.4]} 39... Kd6 {[%clk 0:00:51.5]} 40. Kf3
{[%clk 0:00:25.7]} 40... Bb6 {[%clk 0:00:50.7]} 41. h4 {[%clk 0:00:24.7]} 41...
e5 {[%clk 0:00:50.7]} 42. g4 {[%clk 0:00:22]} 42... e4+ {[%clk 0:00:48]} 43. Kf4
{[%clk 0:00:22.5]} 43... Bf2 {[%clk 0:00:46.7]} 44. h5 {[%clk 0:00:22.2]} 44...
gxh5 {[%clk 0:00:43.9]} 45. gxh5 {[%clk 0:00:23.1]} 45... h6 {[%clk 0:00:44.5]}
46. Kf5 {[%clk 0:00:21.7]} 46... Be3 {[%clk 0:00:42]} 47. Bf1 {[%clk 0:00:16.7]}
47... Bg5 {[%clk 0:00:40.5]} 48. Bg2 {[%clk 0:00:16.4]} 48... Be3 {[%clk
0:00:29.8]} 49. Bf1 {[%clk 0:00:16.2]} 49... Bb6 {[%clk 0:00:27]} 50. Be2 {[%clk
0:00:14.9]} 50... Bd8 {[%clk 0:00:23.4]} 51. Nd4 {[%clk 0:00:12.4]} 51... Bb6
{[%clk 0:00:20.8]} 52. Nb3 {[%clk 0:00:09.9]} 52... Be3 {[%clk 0:00:20.6]} 53.
Ba6 {[%clk 0:00:07.8]} 53... Kc6 {[%clk 0:00:18.7]} 54. Ke5 {[%clk 0:00:06.6]}
54... Bg1 {[%clk 0:00:15]} 55. Bf1 {[%clk 0:00:03]} 55... Bh2+ {[%clk
0:00:14.6]} 56. Ke6 {[%clk 0:00:03.7]} 56... Bf4 {[%clk 0:00:12.5]} 57. Bg2
{[%clk 0:00:02.2]} 57... Be3 {[%clk 0:00:11.3]} 58. Bf1 {[%clk 0:00:01.8]} 58...
Bf4 {[%clk 0:00:09.9]} 59. Bg2 {[%clk 0:00:02.4]} 59... Be3 {[%clk 0:00:08.4]}
60. Bh1 {[%clk 0:00:03]} 60... Bg5 {[%clk 0:00:06.2]} 61. Ke5 {[%clk 0:00:02.6]}
61... Bh4 {[%clk 0:00:05.4]} 62. Nd4+ {[%clk 0:00:02.8]} 62... Kc5 {[%clk
0:00:05.7]} 63. Ne6+ {[%clk 0:00:01.9]} 63... Kc4 {[%clk 0:00:05.8]} 64. Bg2
{[%clk 0:00:01.7]} 64... Bg3+ {[%clk 0:00:05.1]} 65. Kf5 {[%clk 0:00:01.2]}
65... b3 {[%clk 0:00:05.1]} 66. Bf1+ {[%clk 0:00:01.8]} 66... Kc3 {[%clk
0:00:05]} 67. Nc5 {[%clk 0:00:02.4]} 67... Kb4 {[%clk 0:00:01.6]} 0-1